fUSD/lending_fUSD_20260131
["ID","MTS","AMOUNT","RATE_DAILY","PERIOD"]
[404141383,1769871619055,-1000.0,0.00043642,46]
[404141384,1769871619114,-3322.0,0.00043642,89]
[404141385,1769871619174,-1107.63007,0.00043642,43]
[404141386,1769871619234,-419.0,0.00043642,44]
[404141387,1769871619292,-559.19188,0.00043642,43]
[404141388,1769871619353,-1000.0,0.00043642,43]
[404141389,1769871619415,-1000.0,0.00043642,47]
[404141390,1769871619476,-3322.0,0.00043642,120]
[404141391,1769871619535,-1148.61238259,0.00043642,44]
[404141392,1769871619599,-419.0,0.00043642,45]
[404141393,1769871619660,-579.88197956,0.00043642,44]
[404141394,1769871619720,-1000.0,0.00043642,44]
[404141395,1769871619781,-1000.0,0.00043642,48]
[404141396,1769871619840,-1191.11104075,0.00043642,45]
[404141397,1769871619908,-419.0,0.00043642,46]
[404141398,1769871619967,-601.3376128,0.00043642,45]
[404141399,1769871620027,-1000.0,0.00043642,45]
[404141400,1769871620085,-1000.0,0.00043642,49]
[404141401,1769871620149,-1235.18214925,0.00043642,46]
[404141402,1769871620208,-419.0,0.00043642,47]
[404141403,1769871620266,-500.0,0.00043642,30]
[404141404,1769871620323,-623.58710448,0.00043642,46]
[404141405,1769871620382,-1000.0,0.00043642,46]
[404141406,1769871620442,-1280.88388878,0.00043642,47]
[404141407,1769871620498,-419.0,0.00043642,48]
[404141408,1769871620556,-502.19008359,0.00043642,42]
[404141409,1769871620613,-646.65982734,0.00043642,47]
[404141410,1769871620674,-1000.0,0.00043642,47]
[404141411,1769871620736,-1328.27659266,0.00043642,48]
[404141412,1769871620797,-419.0,0.00043642,49]
[404141413,1769871620857,-670.58624095,0.00043642,48]
[404141414,1769871620922,-1377.42282659,0.00043642,49]
[404141415,1769871620981,-1000.0,0.00043642,48]
[404141416,1769871621040,-1034.00433043,0.00043642,30]
[404141417,1769871621104,-419.0,0.00043642,60]
[404141418,1769871621168,-695.39793187,0.00043642,49]
[404141419,1769871621231,-1000.0,0.00043642,49]
[404141420,1769871621290,-419.0,0.00043642,89]
[404141421,1769871621352,-419.0,0.00043642,120]
[404141422,1769871621410,-500.0,0.00043642,30]
[404141423,1769871621471,-500.0,0.00043642,42]
[404141424,1769871621533,-3000.0,0.00043642,30]
[404141425,1769871621600,-151.0,0.00043642,30]
[404141426,1769871621663,-500.0,0.00043642,43]
[404141427,1769871621724,-3000.0,0.00043642,42]
[404141428,1769871621786,-620.0,0.00043642,30]
[404141429,1769871621850,-1000.0,0.00043642,30]
[404141430,1769871621914,-500.0,0.00043642,44]
[404141431,1769871621980,-3000.0,0.00043642,43]
[404141432,1769871622042,-642.94,0.00043642,42]
[404141433,1769871622105,-156.587,0.00043642,42]
[404141434,1769871622166,-1000.0,0.00043642,42]
[404141435,1769871622230,-3000.0,0.00043642,44]
[404141436,1769871622292,-666.72878,0.00043642,43]
[404141437,1769871622359,-162.380719,0.00043642,43]
[404141438,1769871622421,-500.0,0.00043642,45]
[404141439,1769871622483,-1000.0,0.00043642,43]
[404141440,1769871622545,-3000.0,0.00043642,45]
[404141441,1769871622613,-691.39774486,0.00043642,44]
[404141442,1769871622681,-168.3888056,0.00043642,44]
[404141443,1769871622744,-500.0,0.00043642,46]
[404141444,1769871622806,-1000.0,0.00043642,44]
[404141445,1769871622871,-3000.0,0.00043642,46]
[404141446,1769871622932,-716.97946142,0.00043642,45]
[404141447,1769871623001,-174.61919141,0.00043642,45]
[404141448,1769871623063,-500.0,0.00043642,47]
[404141449,1769871623124,-1000.0,0.00043642,45]
[404141450,1769871623472,-743.50770149,0.00043642,46]
[404141451,1769871623530,-3000.0,0.00043642,47]
[404141452,1769871623593,-181.08010149,0.00043642,46]
[404141453,1769871623662,-500.0,0.00043642,48]
[404141454,1769871623730,-1000.0,0.00043642,46]
[404141455,1769871623787,-771.01748645,0.00043642,47]
[404141456,1769871623848,-3000.0,0.00043642,48]
[404141457,1769871623908,-187.78006525,0.00043642,47]
[404141458,1769871623967,-500.0,0.00043642,49]
[404141459,1769871624027,-1000.0,0.00043642,47]
[404141460,1769871624086,-3000.0,0.00043642,49]
[404141461,1769871624144,-799.54513345,0.00043642,48]
[404141462,1769871624208,-194.72792766,0.00043642,48]
[404141463,1769871624268,-1000.0,0.00043642,48]
[404141464,1769871624324,-829.12830338,0.00043642,49]
[404141465,1769871624385,-201.93286099,0.00043642,49]
[404141466,1769871624444,-1000.0,0.00043642,49]
[404141467,1769871624500,-500.0,0.00043642,30]
[404141468,1769871624559,-500.0,0.00043642,42]
[404141469,1769871624623,-500.0,0.00043642,43]
[404141470,1769871624685,-500.0,0.00043642,44]
[404141471,1769871624743,-500.0,0.00043642,45]
[404141472,1769871624803,-500.0,0.00043642,46]
[404141473,1769871624860,-500.0,0.00043642,47]
[404141474,1769871624919,-500.0,0.00043642,48]
[404141475,1769871624976,-500.0,0.00043642,49]
[404141476,1769871625032,-1000.0,0.00043643,60]
[404141477,1769871625088,-274.37624853,0.00043643,30]
[404141478,1769871625148,-171.01132194,0.00043643,30]
[404141479,1769871625205,-273.96844827,0.00043643,30]
[404141480,1769871625263,-151.60257716,0.00043643,30]
[404141481,1769871625319,-242.41474719,0.00043643,30]
[404141482,1769871625374,-184.22341897,0.00043643,30]
[404141483,1769871625431,-285.12135095,0.00043643,30]
[404141484,1769871625489,-254.03152414,0.00043643,30]
[404141485,1769871625551,-190.27137735,0.00043643,30]
[404141486,1769871625613,-182.25851637,0.00043643,30]
[404141487,1769871625672,-191.56315351,0.00043643,30]
[404141488,1769871625729,-213.23670522,0.00043663,120]
[404141489,1769871625788,-698.36,0.00043671,120]
[404141490,1769871625848,-500.0,0.00043671,120]
[404141491,1769871625905,-1327.11863315,0.0004369,120]
[404141492,1769871625962,-910.09685383,0.000437,120]
[404141493,1769871626019,-501.92167819,0.000438,30]
[404141494,1769871626075,-736.07757148,0.000438,30]
[404141495,1769871626131,-180.35339015,0.000438,120]
[404141496,1769871626186,-301.87550966,0.000438,120]
[404141497,1769871626242,-346.95152365,0.000438,120]
[404141498,1769871626295,-203.88657317,0.000438,120]
[404141499,1769871626352,-160.15741891,0.000438,120]
[404141500,1769871626404,-180.10874508,0.000438,120]
[404141501,1769871626457,-186.43042815,0.000438,120]
[404141502,1769871626511,-265.3689033,0.000438,120]
[404141503,1769871626573,-179.71671293,0.000438,120]
[404141504,1769871626632,-1165.69914984,0.000438,120]
[404141505,1769871626695,-192.81219846,0.000438,120]
[404141506,1769871626752,-152.0,0.000438,120]
[404141507,1769871626810,-698.36,0.00043808,120]
[404141508,1769871626867,-500.0,0.00043808,120]
[404141509,1769871626924,-1000.0,0.00043863,120]
[404141510,1769871626980,-153.0,0.000439,120]
[404141511,1769871627035,-500.0,0.00043917,60]
[404141512,1769871627090,-698.36,0.00043945,120]
[404141513,1769871627150,-500.0,0.00043945,120]
[404141514,1769871627206,-1844.3750601,0.00043987,120]
[404141515,1769871627268,-968.6969884,0.00044,120]
[404141516,1769871627327,-500.0,0.00044,120]
[404141517,1769871627385,-158.0,0.00044,120]
[404141518,1769871627441,-1000.0,0.00044,120]
[404141519,1769871627496,-276.92738977,0.00044,120]
[404141520,1769871627554,-500.0,0.00044,120]
[404141521,1769871627613,-558.100021,0.00044,57]
[404141522,1769871627669,-8898.0,0.00044041,30]
[404141523,1769871627726,-698.36,0.00044082,120]
[404141524,1769871627784,-500.0,0.00044082,120]
[404141525,1769871627840,-1000.0,0.00044109,120]
[404141526,1769871627897,-1000.0,0.00044191,60]
[404141527,1769871627953,-500.0,0.00044191,60]
[404141528,1769871628008,-698.36,0.00044219,120]
[404141529,1769871628065,-500.0,0.00044219,120]
[404141530,1769871628120,-159.06603623,0.0004425,120]
[404141531,1769871628175,-150.0,0.0004428,120]
[404141532,1769871628233,-698.36,0.00044356,120]
[404141533,1769871628288,-500.0,0.00044356,120]
[404141534,1769871628345,-150.0,0.00044384,120]
[404141535,1769871628405,-166.01067044,0.00044396,120]
[404141536,1769871628464,-152.0,0.000444,120]
[404141537,1769871628532,-500.0,0.00044465,60]
[404141538,1769871628597,-8898.0,0.00044477,30]
[404141539,1769871628662,-698.36,0.00044493,120]
[404141540,1769871628722,-500.0,0.00044493,120]
[404141541,1769871628782,-1076.1327301,0.000445,120]
[404141542,1769871628841,-500.0,0.000445,120]
[404141543,1769871628901,-1580.04,0.000445,30]
[404141544,1769871628957,-829.0,0.000446,120]
[404141545,1769871629221,-150.0,0.000446,30]
[404141546,1769871629280,-153.0,0.000446,120]
[404141547,1769871629338,-253.0,0.000446,47]
[404141548,1769871629395,-698.36,0.0004463,120]
[404141549,1769871629451,-500.0,0.0004463,120]
[404141550,1769871629510,-150.0,0.00044761,120]
[404141551,1769871629568,-698.36,0.00044767,120]
[404141552,1769871629626,-500.0,0.00044767,120]
[404141553,1769871629684,-154.38,0.00044846,91]
[404141554,1769871629741,-172.0,0.00044877,90]
[404141555,1769871629798,-404.39002231,0.0004489,120]
[404141556,1769871629857,-1478.559,0.000449,120]
[404141557,1769871629914,-1478.56,0.000449,120]
[404141558,1769871629970,-794.72751545,0.000449,30]
[404141559,1769871630029,-698.36,0.00044904,120]
[404141560,1769871630087,-500.0,0.00044904,120]
[404141561,1769871630142,-8898.0,0.00044913,30]
[404141562,1769871630199,-1000.0,0.00044931,120]
[404141563,1769871630254,-211.0,0.0004496,30]
[404141564,1769871630311,-159.9,0.00045,85]
[404141565,1769871630368,-1318.46421444,0.00045,120]
[404141566,1769871630424,-1755.26218637,0.00045,120]
[404141567,1769871630478,-300.0,0.00045,120]
[404141568,1769871630534,-550.60490551,0.00045,120]
[404141569,1769871630594,-227.20487821,0.00045,120]
[404141570,1769871630656,-559.16357658,0.00045,120]
[404141571,1769871630712,-250.0,0.00045,120]
[404141572,1769871630773,-10000.0,0.00045,120]
[404141573,1769871630829,-220.78336324,0.00045,120]
[404141574,1769871630887,-150.0,0.00045,120]
[404141575,1769871630944,-569.0,0.00045,120]
[404141576,1769871631001,-1000.0,0.00045,120]
[404141577,1769871631058,-164.61352229,0.00045,60]
[404141578,1769871631114,-1500.0,0.00045,120]
[404141579,1769871631168,-268.19599587,0.00045,30]
[404141580,1769871631222,-200.0,0.00045,120]
[404141581,1769871631277,-516.71,0.00045,120]
[404141582,1769871631332,-516.92,0.00045,120]
[404141583,1769871631387,-530.84,0.00045,120]
[404141584,1769871631443,-265.42,0.00045,120]
[404141585,1769871631500,-223.59,0.00045,120]
[404141586,1769871631559,-500.0,0.00045,120]
[404141587,1769871631617,-530.89,0.00045,120]
[404141588,1769871631674,-30000.0,0.00045,120]
[404141589,1769871631732,-250.68,0.00045,120]
[404141590,1769871631790,-152.0,0.00045,120]
[404141591,1769871631849,-4383.47,0.00045,120]
[404141592,1769871631907,-174.22,0.00045,120]
[404141593,1769871631963,-500.0,0.00045013,60]
[404141594,1769871632021,-698.36,0.00045041,120]
[404141595,1769871632076,-500.0,0.00045041,120]
[404141596,1769871632135,-359.3587532,0.000451,120]
[404141597,1769871632191,-301.87550966,0.000451,120]
[404141598,1769871632246,-346.95152365,0.000451,120]
[404141599,1769871632302,-160.15741891,0.000451,120]
[404141600,1769871632362,-180.10874508,0.000451,120]
[404141601,1769871632418,-186.43042815,0.000451,120]
[404141602,1769871632474,-265.3689033,0.000451,120]
[404141603,1769871632530,-179.71671293,0.000451,120]
[404141604,1769871632585,-1165.69914984,0.000451,120]
[404141605,1769871632644,-698.36,0.00045178,120]
[404141606,1769871632703,-500.0,0.00045178,120]
[404141607,1769871632759,-1000.0,0.00045287,60]
[404141608,1769871632815,-500.0,0.00045287,60]
[404141609,1769871632869,-276.92738977,0.000453,120]
[404141610,1769871632929,-698.36,0.00045315,120]
[404141611,1769871632986,-477.43305483,0.00045315,120]
[404141612,1769871633043,-159.83,0.000454,30]
[404141613,1769871633098,-153.0,0.000454,120]
[404141614,1769871633157,-698.36,0.00045452,120]
[404141615,1769871633213,-212.39695794,0.0004549,120]
[404141616,1769871633271,-500.0,0.000455,120]
[404141617,1769871633326,-1580.04,0.000455,30]
[404141618,1769871633384,-150.0,0.00045584,120]
[404141619,1769871633441,-698.36751805,0.00045589,120]
[404141620,1769871633497,-178.6,0.000456,32]
[404141621,1769871633558,-152.0,0.000456,120]
[404141622,1769871633616,-253.0,0.000456,51]
[404141623,1769871633673,-205.46,0.00045616,120]
[404141624,1769871633730,-150.0,0.00045631,120]
[404141625,1769871633787,-250.84756051,0.000457,120]
[404141626,1769871633847,-1000.0,0.00045753,120]
[404141627,1769871633910,-300.0,0.00045793,30]
[404141628,1769871633967,-297.25,0.000458,120]
[404141629,1769871634023,-1618.32,0.000458,90]
[404141630,1769871634080,-634.084,0.000458,90]
[404141631,1769871634138,-1615.24,0.000458,90]
[404141632,1769871634196,-1000.0,0.000459,120]
[404141633,1769871634254,-1000.0,0.00046,120]
[404141634,1769871634312,-290.4702972,0.00046,120]
[404141635,1769871634368,-205.09035146,0.00046,30]
[404141636,1769871634426,-1161.90593839,0.00046,120]
[404141637,1769871634483,-1118.8097395,0.00046,30]
[404141638,1769871634539,-158.7287,0.00046,120]
[404141639,1769871634602,-1064.30532985,0.00046,90]
[404141640,1769871634868,-500.0,0.00046,120]
[404141641,1769871634928,-150.0,0.00046,120]
[404141642,1769871634985,-2175.45727786,0.00046,120]
[404141643,1769871635056,-150.0,0.00046,120]
[404141644,1769871635120,-500.0,0.00046109,60]
[404141645,1769871635181,-1250.816,0.000462,120]
[404141646,1769871635241,-1250.816,0.000462,120]
[404141647,1769871635300,-1250.81,0.000462,120]
[404141648,1769871635358,-153.0,0.000462,120]
[404141649,1769871635419,-152.0,0.000463,120]
[404141650,1769871635477,-1000.0,0.00046383,60]
[404141651,1769871635549,-500.0,0.00046383,60]
[404141652,1769871635617,-169.29514494,0.0004649,120]
[404141653,1769871635675,-301.87550966,0.000465,120]
[404141654,1769871635731,-346.95152365,0.000465,120]
[404141655,1769871635787,-160.15741891,0.000465,120]
[404141656,1769871635840,-186.43042815,0.000465,120]
[404141657,1769871635894,-265.3689033,0.000465,120]
[404141658,1769871635951,-1165.69914984,0.000465,120]
[404141659,1769871636003,-1000.0,0.00046575,120]
[404141660,1769871636054,-253.0,0.000466,54]
[404141661,1769871636104,-276.92738977,0.000467,120]
[404141662,1769871636155,-746.82,0.00046737,120]
[404141663,1769871636206,-703.01157952,0.000468,120]
[404141664,1769871636259,-512.55,0.000468,120]
[404141665,1769871636313,-150.0,0.00046849,120]
[404141666,1769871636367,-168.52682858,0.00046887,30]
[404141667,1769871636419,-903.48635497,0.000469,120]
[404141668,1769871636469,-153.0,0.000469,120]
[404141669,1769871636522,-152.0,0.000469,120]
[404141670,1769871636578,-211.0,0.0004698,30]
[404141671,1769871636632,-455.78,0.00046986,120]
[404141672,1769871636690,-500.0,0.00047,120]
[404141673,1769871636743,-634.13102576,0.00047,30]
[404141674,1769871636799,-150.0,0.00047,120]
[404141675,1769871636863,-306.07489671,0.00047,120]
[404141676,1769871636920,-166.69758793,0.00047,120]
[404141677,1769871636977,-500.0,0.00047205,60]
[404141678,1769871637035,-512.55,0.00047208,120]
[404141679,1769871637092,-4383.47,0.0004725,120]
[404141680,1769871637150,-174.22,0.0004725,120]
[404141681,1769871637206,-1000.0,0.00047397,120]
[404141682,1769871637263,-3013.45803638,0.000474,60]
[404141683,1769871637321,-829.0,0.000474,120]
[404141684,1769871637375,-2000.0,0.00047425,120]
[404141685,1769871637430,-1000.0,0.00047479,60]
[404141686,1769871637485,-500.0,0.00047479,60]
[404141687,1769871637553,-150.0,0.00047496,120]
[404141688,1769871637624,-564.86259536,0.000475,120]
[404141689,1769871637688,-250.0,0.000475,120]
[404141690,1769871637752,-152.0,0.000475,120]
[404141691,1769871637821,-159.83,0.000476,30]
[404141692,1769871637886,-253.0,0.000476,58]
[404141693,1769871637947,-512.55,0.00047616,120]
[404141694,1769871638007,-153.0,0.000477,120]
[404141695,1769871638066,-177196.10812053,0.000478,60]
[404141696,1769871642341,600.0,0.0004346,120]
[404141697,1769871642436,600.0,0.0004346,120]
[404141698,1769871642567,600.0,0.0004346,120]
[404141699,1769871642689,600.0,0.0004346,120]
[404141700,1769871642881,600.0,0.0004346,120]
[404141701,1769871642985,600.0,0.0004346,120]
[404141702,1769871643094,600.0,0.0004346,120]
[404141703,1769871643332,600.0,0.0004346,120]
[404141704,1769871643418,600.0,0.0004346,120]
[404141705,1769871643634,600.0,0.0004346,120]
[404141706,1769871643702,600.0,0.0004346,120]
[404141707,1769871643865,600.0,0.0004346,120]
[404141708,1769871643936,600.0,0.0004346,120]
[404141709,1769871644126,256.0909652,0.0004346,120]
[404141710,1769871654144,748.0,0.0004346,120]
[404141711,1769871661530,1050.88046112,0.00014448,5]
[404141713,1769872073609,150.0,0.00043462,30]
[404141714,1769872078597,173.99288078,0.00043462,30]
[404141715,1769872083886,300.0,0.00043462,30]
[404141746,1769872231526,-754.66632813,0.0001332,2]
[404141748,1769872231538,-932.31905122,0.0001332,2]
[404141750,1769872231550,-405.05,0.0001332,2]
[404141751,1769872231562,-1727.40362359,0.0001332,2]
[404141752,1769872231626,-1343.53099706,0.0001332,2]
[404141753,1769872231636,-300.0,0.00014248,2]
[404141754,1769872231646,-1200.0,0.00014248,2]
[404141755,1769872231655,-452.66967737,0.00014249,2]
[404141756,1769872231666,-8810.57129373,0.00014249,2]
[404141759,1769872231868,-400.99999999,0.00014248,2]
[404141898,1769872237563,-91.56140908,0.00014248,2]
[404141899,1769872237575,-523.65406517,0.00014249,2]
[404141900,1769872237587,-1659.99649129,0.00014249,2]
[404141901,1769872238255,-2258.49167566,0.00014249,2]
[404141902,1769872238268,-1443.10862957,0.00014249,2]
[404141903,1769872238424,-1590.97766349,0.00014249,2]
[404141904,1769872238436,-379.75429954,0.00014249,2]
[404141905,1769872238447,-5094.4,0.00014249,2]
[404142000,1769872239767,-458.87313864,0.00014249,2]
[404142003,1769872239779,-2214.0,0.00014249,2]
[404142005,1769872239791,-2950.53049833,0.00014249,2]
[404142007,1769872239802,-494.01999985,0.00014249,2]
[404142011,1769872239832,-360.0,0.00014249,2]
[404142030,1769872240005,-133436.2885527,0.00014249,2]
[404142032,1769872240017,-262.899,0.00014249,2]
[404142046,1769872240179,-6426.99855979,0.00014249,2]
[404142082,1769872243915,-1059.31718657,0.00014249,2]
[404142083,1769872245256,-5799.85000488,0.00014249,2]
[404142087,1769872245267,-1001.403706,0.00014249,2]
[404142103,1769872245618,-1890.52788908,0.00014249,2]
[404142104,1769872245630,-814.59,0.00014249,2]
[404142105,1769872245969,-8250.79561771,0.00014249,2]
[404142228,1769872323685,260.0,0.0004346,30]
[404142309,1769872448166,1000.0,0.0004346,30]
[404142341,1769872542372,500.0,0.00043468,30]
[404142352,1769872617650,150.0,0.00043468,30]
[404142353,1769872627649,150.0,0.00043468,30]
[404142356,1769872637707,249.41871108,0.00043468,30]
[404142357,1769872642662,169.80416475,0.00043468,30]
[404142360,1769872654848,169.80416475,0.00043468,30]
[404142374,1769872797417,1000.0,0.00043468,30]
[404142401,1769873167651,256180.37425175,0.00043473,30]
[404142402,1769873175932,9634.80969665,0.000209,30]
[404142404,1769873226850,1200.0,0.000148,5]
[404142405,1769873228946,2400.0,0.000149,5]
[404142408,1769873275150,-687.78,0.00014049,2]
[404142435,1769873410753,200.0,0.00043473,30]
[404142455,1769873431706,-753.54269787,0.00014048,2]
[404142457,1769873431718,-431.93,0.00014048,2]
[404142459,1769873431729,-14.52730213,0.00014048,2]
[404142461,1769873431738,-270.6209111,0.00014048,2]
[404142462,1769873431806,-29.3790889,0.00014048,2]
[404142463,1769873431815,-150.0,0.00014048,2]
[404142464,1769873431825,-300.0,0.00014048,2]
[404142465,1769873431835,-1466.8583,0.00014049,2]
[404142466,1769873431844,-83711.99205854,0.00014049,2]
[404142467,1769873431855,-42692.11654673,0.00014049,2]
[404142468,1769873431866,-26609.85505701,0.00014049,2]
[404142469,1769873431877,-2345.16335082,0.00014049,2]
[404142470,1769873431888,-3753.07156661,0.00014049,2]
[404142471,1769873431899,-7477.9414305,0.00014049,2]
[404142472,1769873431911,-1487.95536,0.00014049,2]
[404142473,1769873431923,-5879.39187,0.00014049,2]
[404142474,1769873431934,-510.0,0.00014049,2]
[404142475,1769873431955,-1650.0,0.00014049,2]
[404142476,1769873431968,-1027.11678612,0.00014049,2]
[404142964,1769873437669,-539.54750456,0.00014049,2]
[404142965,1769873437681,-259.00507839,0.00014049,2]
[404142967,1769873437771,-814.15391678,0.00014049,2]
[404142968,1769873437783,-2020.64618143,0.00014049,2]
[404142969,1769873437795,-17294.19999999,0.00014049,2]
[404142970,1769873437902,-23199.89749439,0.00014049,2]
[404142971,1769873437914,-28272.52426398,0.00014049,2]
[404142977,1769873439777,-2418.46853415,0.00014049,2]
[404142978,1769873439787,-2604.82,0.00014061,2]
[404142979,1769873439797,-162.24,0.000141,2]
[404142980,1769873439806,-3817.25845062,0.00014115,2]
[404142981,1769873439816,-388.0,0.00014138,2]
[404142982,1769873439826,-12484.21301523,0.00014139,2]
[404142983,1769873439837,-740.98031079,0.00014139,2]
[404142984,1769873439867,-439.88449716,0.00014139,2]
[404142985,1769873439876,-81.37371118,0.00014148,2]
[404142986,1769873439887,-418.62628882,0.00014148,2]
[404142987,1769873439896,-500.0,0.00014148,2]
[404142988,1769873439909,-500.0,0.00014148,2]
[404142989,1769873439918,-197.19288843,0.00014148,2]
[404142990,1769873439927,-500.0,0.00014148,2]
[404142991,1769873439937,-500.0,0.00014148,2]
[404142992,1769873439946,-500.0,0.00014148,2]
[404142993,1769873439955,-599.14090502,0.00014148,2]
[404142994,1769873439965,-233.23787833,0.00014148,2]
[404142995,1769873439974,-343.2206,0.00014149,2]
[404142996,1769873439984,-796.9918,0.00014149,2]
[404142997,1769873439994,-4741.35,0.00014214,2]
[404142998,1769873440003,-500.0,0.00014232,2]
[404142999,1769873440013,-223.33934012,0.00014235,2]
[404143000,1769873440022,-500.0,0.00014248,2]
[404143001,1769873440031,-500.0,0.00014248,2]
[404143002,1769873440041,-500.0,0.00014248,2]
[404143003,1769873440051,-500.0,0.00014248,2]
[404143004,1769873440060,-500.0,0.00014248,2]
[404143005,1769873440069,-500.0,0.00014248,2]
[404143006,1769873440079,-500.0,0.00014248,2]
[404143007,1769873440092,-500.0,0.00014248,2]
[404143008,1769873440102,-500.0,0.00014248,2]
[404143009,1769873440112,-1619.36,0.00014248,2]
[404143010,1769873440123,-8190.04286378,0.00014248,2]
[404143011,1769873440140,-1809.94713622,0.00014248,2]
[404143012,1769873440151,-500.0,0.00014248,2]
[404143013,1769873440163,-361.84220614,0.00014248,2]
[404143014,1769873440175,-500.0,0.00014248,2]
[404143015,1769873440185,-500.0,0.00014248,2]
[404143016,1769873440197,-500.0,0.00014248,2]
[404143017,1769873440207,-101.88788995,0.00014401,2]
[404143018,1769873440219,-268.24211005,0.00014401,2]
[404143019,1769873440229,-244.2,0.00014448,2]
[404143020,1769873440239,-3817.25845056,0.00014536,2]
[404143021,1769873440250,-267.72,0.0001455,2]
[404143022,1769873440261,-244.2,0.00014722,2]
[404143023,1769873440271,-153.53180012,0.000148,2]
[404143024,1769873440281,-288.62836425,0.000148,2]
[404143025,1769873440291,-500.0,0.00014899,2]
[404143026,1769873440302,-500.0,0.00014899,2]
[404143027,1769873440312,-500.0,0.00014899,2]
[404143028,1769873440322,-500.0,0.00014899,2]
[404143029,1769873440332,-500.0,0.00014899,2]
[404143030,1769873440342,-500.0,0.00014899,2]
[404143031,1769873440351,-500.0,0.00014899,2]
[404143032,1769873440365,-500.0,0.00014899,2]
[404143033,1769873440376,-500.0,0.00014899,2]
[404143034,1769873440387,-500.0,0.00014899,2]
[404143035,1769873440398,-500.0,0.00014899,2]
[404143036,1769873440409,-599.45758989,0.00014899,2]
[404143037,1769873440428,-500.0,0.00014899,2]
[404143038,1769873440439,-500.0,0.00014899,2]
[404143039,1769873440449,-500.0,0.00014899,2]
[404143040,1769873440459,-500.0,0.00014899,2]
[404143041,1769873440469,-500.0,0.00014899,2]
[404143042,1769873440479,-500.0,0.00014899,2]
[404143043,1769873440489,-358.11979136,0.00014899,2]
[404143044,1769873440499,-500.0,0.00014899,2]
[404143045,1769873440510,-500.0,0.00014899,2]
[404143046,1769873440520,-500.0,0.00014899,2]
[404143047,1769873440531,-500.0,0.00014899,2]
[404143048,1769873440541,-500.0,0.00014899,2]
[404143049,1769873440553,-500.0,0.00014899,2]
[404143050,1769873440564,-500.0,0.00014899,2]
[404143051,1769873440574,-500.0,0.00014899,2]
[404143052,1769873440585,-408.0127687,0.00014899,2]
[404143053,1769873440602,-91.9872313,0.00014899,2]
[404143054,1769873440613,-274.79086486,0.00014899,2]
[404143071,1769873443735,-225.20913514,0.00014899,2]
[404143072,1769873443746,-824.4016,0.000149,2]
[404143073,1769873443756,-283.84821862,0.000149,2]
[404143075,1769873443767,-280.14104624,0.00014956,2]
[404143076,1769873444766,-1370.66,0.00014956,2]
[404143077,1769873444892,-466.16,0.00014956,2]
[404143078,1769873444905,-1700.29740432,0.00014956,2]
[404143079,1769873444917,-244.2,0.00014996,2]
[404143080,1769873444928,-500.0,0.00014999,2]
[404143081,1769873444938,-162.0244226,0.00014999,2]
[404143082,1769873444949,-295.40683991,0.00014999,2]
[404143083,1769873444959,-4443.07133317,0.00015,2]
[404143084,1769873444972,-578.05999288,0.00015,2]
[404143085,1769873444988,-370.49849249,0.00015,2]
[404143089,1769873445740,-24352.65469348,0.00015,2]
[404143090,1769873445751,-370.13,0.00015122,2]
[404143091,1769873445767,-244.2,0.0001527,2]